bitfinex-derivatives/quotes_BTCF0:USTF0_20250509
["timestamp","ask_amount","ask_price","bid_price","bid_amount"]
[1746763905782,1.0625265,102660.0,102650.0,0.40263226]
[1746763906086,0.9025265,102660.0,102650.0,0.40263226]
[1746763906487,0.97435852,102660.0,102650.0,0.40263226]
[1746763906684,0.97435852,102660.0,102650.0,0.30520276]
[1746763906881,0.83669448,102660.0,102650.0,0.30520276]
[1746763907185,1.14035852,102660.0,102650.0,0.27210276]
[1746763908086,0.98035852,102660.0,102650.0,0.27210276]
[1746763908285,1.01314852,102660.0,102650.0,0.01725056]
[1746763908481,1.01314852,102660.0,102650.0,0.21211656]
[1746763908883,1.01314852,102660.0,102650.0,0.24461656]
[1746763909191,1.17314852,102660.0,102650.0,0.24461656]
[1746763909992,1.33739334,102660.0,102650.0,0.24461656]
[1746763910291,1.33739334,102660.0,102650.0,0.27491656]
[1746763910292,1.17739334,102660.0,102650.0,0.27491656]
[1746763912092,1.33739334,102660.0,102650.0,0.27491656]
[1746763913090,1.17739334,102660.0,102650.0,0.27491656]
[1746763913487,1.12237631,102660.0,102650.0,0.27491656]
[1746763915488,0.97871227,102660.0,102650.0,0.27491656]
[1746763915690,1.12237631,102660.0,102650.0,0.27491656]
[1746763920094,1.01314852,102660.0,102650.0,0.27491656]
[1746763923299,1.11220076,102660.0,102650.0,0.27491656]
[1746763925301,0.21136982,102660.0,102650.0,0.45491656]
[1746763925489,0.16844224,102660.0,102650.0,0.55464858]
[1746763925797,0.36328924,102660.0,102650.0,1.25544858]
[1746763926300,0.36328924,102660.0,102650.0,1.41544858]
[1746763927399,0.36328924,102660.0,102650.0,1.05464858]
[1746763927793,0.36328924,102660.0,102650.0,1.41544858]
[1746763928192,0.36028924,102660.0,102650.0,1.25544858]
[1746763928398,0.36128924,102660.0,102650.0,0.91544858]
[1746763928592,0.36128924,102660.0,102650.0,0.99544858]
[1746763928791,0.35928924,102660.0,102650.0,0.99544858]
[1746763930105,0.35928924,102660.0,102650.0,0.63464858]
[1746763930297,0.35928924,102660.0,102650.0,0.99544858]
[1746763930496,0.35928924,102660.0,102650.0,0.63464858]
[1746763930800,0.33458382,102660.0,102650.0,0.63464858]
[1746763931602,0.13973682,102660.0,102650.0,0.99544858]
[1746763931806,0.10913682,102660.0,102650.0,0.99544858]
[1746763932007,0.10913682,102660.0,102650.0,1.25544858]
[1746763932207,0.10913682,102660.0,102650.0,1.41544858]
[1746763934103,0.10913682,102660.0,102650.0,1.50448858]
[1746763937508,0.10913682,102660.0,102650.0,1.43265656]
[1746763937707,0.10813682,102660.0,102650.0,1.50448858]
[1746763937907,0.10813682,102660.0,102650.0,1.50548858]
[1746763938109,0.10713682,102660.0,102650.0,1.50548858]
[1746763938310,0.10713682,102660.0,102650.0,1.50648858]
[1746763941001,0.16973682,102660.0,102650.0,1.50648858]
[1746763941201,0.16973682,102660.0,102650.0,1.25744858]
[1746763941810,0.16973682,102660.0,102650.0,1.18561656]
[1746763942111,0.16973682,102660.0,102650.0,1.25744858]
[1746763943712,0.34055672,102660.0,102650.0,1.15771656]
[1746763944014,0.37295672,102660.0,102650.0,1.15771656]
[1746763944207,0.53295672,102660.0,102650.0,1.15771656]
[1746763945113,0.37295672,102660.0,102650.0,1.15771656]
[1746763945305,0.47300896,102660.0,102650.0,1.22854858]
[1746763945714,0.47400896,102660.0,102650.0,1.22754858]
[1746763946516,0.47300896,102660.0,102650.0,1.22754858]
[1746763946709,0.47400896,102660.0,102650.0,1.22754858]
[1746763949017,0.39966214,102660.0,102650.0,1.22754858]
[1746763952719,0.3006099,102660.0,102650.0,1.22754858]
[1746763954518,0.09739,102660.0,102650.0,1.22754858]
[1746763954721,0.2682099,102660.0,102650.0,1.22754858]
[1746763955020,0.06529,102660.0,102650.0,1.25754858]
[1746763955222,0.06529,102660.0,102650.0,1.44544858]
[1746763956119,0.06429,102660.0,102650.0,1.44544858]
[1746763956320,0.06329,102660.0,102650.0,1.44744858]
[1746763957116,0.23678488,102660.0,102650.0,1.44744858]
[1746763961022,0.06329,102660.0,102650.0,1.44744858]
[1746763962113,0.06329,102660.0,102650.0,1.28744858]
[1746763967228,0.03279,102660.0,102650.0,1.28744858]
[1746763971328,0.06309,102660.0,102650.0,1.28744858]
[1746763972832,0.09459,102660.0,102650.0,1.28744858]
[1746763973031,0.09459,102660.0,102650.0,1.64824858]
[1746763973334,0.09459,102660.0,102650.0,3.14824858]
[1746763974128,0.09459,102660.0,102650.0,3.15129443]
[1746763975130,0.09459,102660.0,102650.0,3.32797443]
[1746763975531,0.06309,102660.0,102650.0,3.32797443]
[1746763976337,0.06309,102660.0,102650.0,3.32797442]
[1746763976532,0.09499,102660.0,102650.0,3.32797442]
[1746763980429,0.2658099,102660.0,102650.0,3.32797442]
[1746763981136,0.2658099,102660.0,102650.0,3.32492858]
[1746763981333,0.2339099,102660.0,102650.0,1.8967606]
[1746763981534,0.06309,102660.0,102650.0,1.8967606]
[1746763981841,0.06309,102660.0,102650.0,3.3967606]
[1746763982141,0.06309,102660.0,102650.0,3.5567606]
[1746763982943,0.06309,102660.0,102650.0,3.5577606]
[1746763983438,0.0311026,102660.0,102650.0,3.5577606]
[1746763983741,0.10464264,102670.0,102660.0,0.194847]
[1746763983936,0.30846254,102670.0,102660.0,1.36891104]
[1746763986338,0.13185224,102680.0,102670.0,0.194828]
[1746763986339,0.09905224,102680.0,102670.0,0.194828]
[1746763986539,4e-08,102680.0,102670.0,1.51581204]
[1746763986750,0.15727685,102690.0,102680.0,0.1948091]
[1746763986941,0.15727685,102690.0,102680.0,1.29987314]
[1746763986942,0.3266352,102690.0,102680.0,1.29987314]
[1746763987245,0.2946352,102690.0,102680.0,1.30291807]
[1746763987435,0.2946352,102690.0,102680.0,2.80291807]
[1746763987933,0.2966352,102690.0,102680.0,2.65925403]
[1746763988139,0.2966352,102690.0,102680.0,2.80291807]
[1746763989342,0.2976352,102690.0,102680.0,2.80291807]
[1746763989644,0.3282352,102690.0,102680.0,2.80291807]
[1746763991446,0.2044199,102690.0,102680.0,2.80291807]
[1746763994046,0.1708199,102690.0,102680.0,2.80291807]
[1746763994346,0.16683,102700.0,102690.0,0.1947901]
[1746763994648,0.16683,102700.0,102690.0,1.45861907]
[1746763994837,0.3376499,102700.0,102690.0,1.45861907]
[1746763995345,0.3406499,102700.0,102690.0,1.45861907]
[1746763995550,0.3406499,102700.0,102690.0,1.3867868]
[1746763996747,0.3436499,102700.0,102690.0,1.3867868]
[1746763997145,0.3436499,102700.0,102690.0,1.45861882]
[1746763997146,0.17473,102700.0,102690.0,1.45861882]
[1746763997343,0.10943,102700.0,102690.0,1.45557414]
[1746763997542,0.10943,102700.0,102690.0,1.45861867]
[1746763998157,0.10943,102700.0,102690.0,1.34585463]
[1746763998340,0.10943,102700.0,102690.0,1.48951867]
[1746764002439,0.13983,102700.0,102690.0,1.48951867]
[1746764002752,0.13983,102700.0,102690.0,1.48951865]
[1746764002947,0.13983,102700.0,102690.0,1.31379865]
[1746764003151,0.13983,102700.0,102690.0,1.41752663]
[1746764003348,0.20343,102700.0,102690.0,1.41752663]
[1746764004454,0.3742499,102700.0,102690.0,1.41752663]
[1746764005551,0.2802499,102700.0,102690.0,1.48935865]
[1746764006547,0.2772499,102700.0,102690.0,1.49035865]
[1746764006953,0.2742499,102700.0,102690.0,1.49135865]
[1746764007141,0.3050499,102700.0,102690.0,1.49135865]
[1746764008149,0.3366499,102700.0,102690.0,1.49135865]
[1746764010157,0.3366499,102700.0,102690.0,1.85215865]
[1746764011954,0.3366499,102700.0,102690.0,1.85215858]
[1746764012460,0.3366499,102700.0,102690.0,1.13055858]
[1746764012660,0.3366499,102700.0,102690.0,1.85215858]
[1746764015560,0.3366499,102700.0,102690.0,1.78032656]
[1746764017157,0.3366499,102700.0,102690.0,1.77728212]
[1746764017364,0.3366499,102700.0,102690.0,1.7803266]
[1746764017863,0.3366499,102700.0,102690.0,1.84911414]
[1746764018364,0.3366499,102700.0,102690.0,1.8521586]
[1746764018765,0.3366499,102700.0,102690.0,1.70849456]
[1746764019170,0.3366499,102700.0,102690.0,1.8541586]
[1746764020662,0.3366499,102700.0,102690.0,1.85415858]
[1746764023053,0.3366499,102700.0,102690.0,1.78232656]
[1746764024459,0.3366499,102700.0,102690.0,1.64827454]
[1746764024761,0.3366499,102700.0,102690.0,1.72010656]
[1746764025159,0.5288499,102700.0,102690.0,1.72010656]
[1746764029275,0.5288499,102700.0,102690.0,1.71706212]
[1746764029479,0.5288499,102700.0,102690.0,1.72010677]
[1746764034984,0.5264199,102700.0,102690.0,1.72010677]
[1746764035583,0.5264199,102700.0,102690.0,1.75050677]
[1746764036185,0.3664199,102700.0,102690.0,1.75050677]
[1746764037189,0.5264199,102700.0,102690.0,1.75050677]
[1746764037683,0.5264199,102700.0,102690.0,1.78310677]
[1746764038085,0.3664199,102700.0,102690.0,1.78310677]
[1746764038285,0.3664199,102700.0,102690.0,1.78310676]
[1746764038485,0.3688499,102700.0,102690.0,1.78310676]
[1746764038991,0.3380499,102700.0,102690.0,1.85493878]
[1746764039292,0.2742499,102700.0,102690.0,1.85493878]
[1746764039490,0.3400499,102700.0,102690.0,3.28310676]
[1746764041584,0.3400499,102700.0,102690.0,3.35493878]
[1746764041988,0.3400499,102700.0,102690.0,3.28310676]
[1746764042987,0.3400499,102700.0,102690.0,3.28310653]
[1746764044296,0.3400499,102700.0,102690.0,1.78310653]
[1746764045278,0.2742499,102700.0,102690.0,1.78310653]
[1746764045785,0.3686499,102700.0,102690.0,1.78310653]
[1746764046187,0.5286499,102700.0,102690.0,1.78310653]
[1746764047190,0.10343,102700.0,102690.0,1.85493855]
[1746764048392,0.10343,102700.0,102690.0,1.78310653]
[1746764048892,0.13663,102700.0,102690.0,1.78310653]
[1746764050382,0.3074499,102700.0,102690.0,1.78006212]
[1746764051280,0.13663,102700.0,102690.0,1.78006212]
[1746764051485,0.3375499,102700.0,102690.0,1.77958212]
[1746764051682,0.3684499,102700.0,102690.0,1.77958212]
[1746764052084,0.5284499,102700.0,102690.0,1.77958212]
[1746764052792,0.5284499,102700.0,102690.0,1.77910212]
[1746764054296,0.2742499,102700.0,102690.0,1.85093414]
[1746764054591,0.2742499,102700.0,102690.0,1.85397858]
[1746764057095,0.2742499,102700.0,102690.0,1.13237858]
[1746764057297,0.2742499,102700.0,102690.0,1.71031454]
[1746764057595,0.2742499,102700.0,102690.0,1.77910212]
[1746764058994,0.2742499,102700.0,102690.0,1.85093414]
[1746764060501,0.2742499,102700.0,102690.0,1.77910212]
[1746764061698,0.2742499,102700.0,102690.0,1.7072701]
[1746764061999,0.2742499,102700.0,102690.0,1.77910212]
[1746764064492,0.3051499,102700.0,102690.0,1.77910212]
[1746764064898,0.2742499,102700.0,102690.0,1.77910212]
[1746764065399,0.2742499,102700.0,102690.0,1.78214657]
[1746764066093,0.2742499,102700.0,102690.0,1.85197859]
[1746764066289,0.2742499,102700.0,102690.0,1.85597859]
[1746764067096,0.3387499,102700.0,102690.0,1.78214657]
[1746764067397,0.3715499,102700.0,102690.0,1.78514657]
[1746764067604,0.3715499,102700.0,102690.0,1.51926212]
[1746764068701,0.3715499,102700.0,102690.0,1.51726212]
[1746764068903,0.3715499,102700.0,102690.0,1.51526212]
[1746764069199,0.3715499,102700.0,102690.0,1.69482212]
[1746764069498,0.3715499,102700.0,102690.0,1.75602212]
[1746764072502,0.3715499,102700.0,102690.0,1.75906664]
[1746764073907,0.3715499,102700.0,102690.0,1.58566664]
[1746764074101,0.3715499,102700.0,102690.0,1.75898664]
[1746764079305,0.36073,102700.0,102690.0,1.75898664]
[1746764079498,0.5315499,102700.0,102690.0,1.75898664]
[1746764080101,0.3715499,102700.0,102690.0,1.75898664]
[1746764081101,0.5315499,102700.0,102690.0,1.75898664]
[1746764082109,0.3715499,102700.0,102690.0,1.75898664]
[1746764083201,0.5315499,102700.0,102690.0,1.75898664]
[1746764084510,0.5315499,102700.0,102690.0,1.58566664]
[1746764084710,0.5315499,102700.0,102690.0,1.75830664]
[1746764086513,0.5315499,102700.0,102690.0,1.03670661]
[1746764086811,0.5315499,102700.0,102690.0,1.75830661]
[1746764087205,0.3715499,102700.0,102690.0,1.75822661]
[1746764088111,0.5315499,102700.0,102690.0,1.75822661]
[1746764088807,0.36073,102700.0,102690.0,1.64082661]
[1746764089008,0.5315499,102700.0,102690.0,1.72702661]
[1746764093412,0.5315499,102700.0,102690.0,1.53899459]
[1746764093607,0.5315499,102700.0,102690.0,1.62511459]
[1746764093807,0.5315499,102700.0,102690.0,1.6220701]
[1746764094006,0.5315499,102700.0,102690.0,1.62511476]
[1746764094412,0.5315499,102700.0,102690.0,1.69694678]
[1746764094609,0.5315499,102700.0,102690.0,1.8453632]
[1746764095102,0.5315499,102700.0,102690.0,1.6728832]
[1746764095306,0.5315499,102700.0,102690.0,1.8453232]
[1746764097111,0.5315499,102700.0,102690.0,1.7592432]
[1746764097312,0.5315499,102700.0,102690.0,1.8452832]
[1746764097616,0.5315499,102700.0,102690.0,1.69686678]
[1746764099413,0.5315499,102700.0,102690.0,1.61082678]
[1746764099608,0.5315499,102700.0,102690.0,1.47682678]
[1746764100312,0.5315499,102700.0,102690.0,1.37682678]
[1746764100518,0.5315499,102700.0,102690.0,1.74682678]
[1746764101018,0.5315499,102700.0,102690.0,1.74682682]
[1746764101505,0.70075792,102700.0,102690.0,1.1116348]
[1746764101712,1.25632902,102700.0,102690.0,0.3808348]
[1746764102018,0.9897259,102700.0,102690.0,0.3808348]
[1746764102316,1.06155792,102700.0,102690.0,0.3808348]
[1746764102722,0.9897259,102700.0,102690.0,0.3808348]
[1746764103110,0.9907259,102700.0,102690.0,0.3788348]
[1746764103308,0.9917259,102700.0,102690.0,0.3778348]
[1746764103722,1.06355792,102700.0,102690.0,0.3778348]
[1746764105620,1.25832902,102700.0,102690.0,0.3778348]
[1746764106113,1.25832902,102700.0,102690.0,0.1978348]
[1746764106323,1.25832902,102700.0,102690.0,0.19783539]
[1746764106511,1.06355792,102700.0,102690.0,0.19783539]
[1746764106714,0.9917259,102700.0,102690.0,0.1947901]
[1746764107109,0.9917259,102700.0,102690.0,0.29812212]
[1746764107318,0.8943499,102700.0,102690.0,0.57812212]
[1746764108026,0.8943499,102700.0,102690.0,0.55812212]
[1746764108326,0.5335499,102700.0,102690.0,0.57812212]
[1746764108626,0.6078969,102700.0,102690.0,0.93892212]
[1746764108822,0.6078969,102700.0,102690.0,0.94196716]
[1746764109023,0.6078969,102700.0,102690.0,0.97206716]
[1746764109329,0.6078969,102700.0,102690.0,0.97206711]
[1746764109524,0.5750969,102700.0,102690.0,1.50565913]
[1746764109727,0.5750969,102700.0,102690.0,1.46462711]
[1746764110321,0.6052969,102700.0,102690.0,1.46462711]
[1746764111918,0.5309499,102700.0,102690.0,1.46462711]
[1746764113727,0.5309499,102700.0,102690.0,1.37874711]
[1746764113926,0.5309499,102700.0,102690.0,1.46150212]
[1746764114323,0.5309499,102700.0,102690.0,1.37570212]
[1746764114519,0.5309499,102700.0,102690.0,1.46150212]
[1746764115232,0.5309499,102700.0,102690.0,1.37570212]
[1746764115530,0.5309499,102700.0,102690.0,1.34490212]
[1746764115826,0.60278192,102700.0,102690.0,0.5121701]
[1746764116034,0.5309499,102700.0,102690.0,0.8729701]
[1746764116222,0.5309499,102700.0,102690.0,0.5121701]
[1746764116720,0.5309499,102700.0,102690.0,0.8729701]
[1746764116927,0.5309499,102700.0,102690.0,0.5121701]
[1746764120723,0.6052969,102700.0,102690.0,0.5121701]
[1746764120929,0.6052969,102700.0,102690.0,0.6021701]
[1746764122038,0.6052969,102700.0,102690.0,0.6329701]
[1746764123237,0.6052969,102700.0,102690.0,0.70480212]
[1746764124436,0.6052969,102700.0,102690.0,1.06560212]
[1746764124629,0.6052969,102700.0,102690.0,0.9937701]
[1746764124833,0.6052969,102700.0,102690.0,0.6329701]
[1746764127340,0.5052969,102700.0,102690.0,0.6329701]
[1746764127534,0.4105969,102700.0,102690.0,1.06560212]
[1746764127740,0.4105969,102700.0,102690.0,1.09780212]
[1746764127939,0.4407969,102700.0,102690.0,1.0259701]
[1746764128237,0.5041969,102700.0,102690.0,0.9078901]
[1746764128433,0.5041969,102700.0,102690.0,0.9937701]
[1746764129637,0.5041969,102700.0,102690.0,0.9078901]
[1746764129937,0.5041969,102700.0,102690.0,1.06560212]
[1746764130141,0.5041969,102700.0,102690.0,1.09880212]
[1746764130325,0.5041969,102700.0,102690.0,1.10184712]
[1746764130839,0.5041969,102700.0,102690.0,0.90184712]
[1746764131037,0.5041969,102700.0,102690.0,0.93184712]
[1746764132340,0.52914142,102700.0,102690.0,0.93184712]
[1746764133927,0.52914142,102700.0,102690.0,0.92880212]
[1746764135643,0.52914142,102700.0,102690.0,0.83880212]
[1746764135940,0.52914142,102700.0,102690.0,0.92880212]
[1746764137346,0.52914142,102700.0,102690.0,0.8569701]
[1746764139741,0.52914142,102700.0,102690.0,0.8269701]
[1746764140046,0.52914142,102700.0,102690.0,0.8569701]
[1746764141251,0.52914142,102700.0,102690.0,0.92880212]
[1746764143847,0.52914142,102700.0,102690.0,0.91880212]
[1746764144047,0.52914142,102700.0,102690.0,0.82880212]
[1746764144246,0.36914142,102700.0,102690.0,0.82880212]
[1746764144447,0.36914142,102700.0,102690.0,1.02880212]
[1746764144847,0.44361347,102700.0,102690.0,0.98880212]
[1746764146449,0.44361347,102700.0,102690.0,0.9469701]
[1746764146650,0.44361347,102700.0,102690.0,0.98880212]
[1746764146947,0.44361347,102700.0,102690.0,1.36880212]
[1746764147146,0.44361347,102700.0,102690.0,1.2110901]
[1746764147336,0.87021659,102700.0,102690.0,0.2870901]
[1746764147540,1.23101659,102700.0,102690.0,0.2562901]
[1746764147741,1.23101659,102700.0,102690.0,0.2262901]
[1746764148249,1.24078383,102700.0,102690.0,0.2262901]
[1746764149651,1.2381438,102700.0,102690.0,0.2262901]
[1746764149852,1.16631178,102700.0,102690.0,0.2262901]
[1746764150150,1.16631178,102700.0,102690.0,0.2566901]
[1746764150151,0.96177344,102700.0,102690.0,0.2566901]
[1746764150353,1.15654454,102700.0,102690.0,0.2566901]
[1746764150947,0.79574454,102700.0,102690.0,0.2566901]
[1746764152458,0.80567924,102700.0,102690.0,0.2566901]
[1746764155863,0.87346344,102700.0,102690.0,0.2566901]
[1746764156049,0.87646344,102700.0,102690.0,0.2566901]
[1746764156254,1.23726344,102700.0,102690.0,0.2566901]
[1746764156454,0.87646344,102700.0,102690.0,0.2566901]
[1746764157658,1.23726344,102700.0,102690.0,0.2566901]
[1746764158054,1.23726344,102700.0,102690.0,0.2262901]
[1746764159158,1.07318772,102700.0,102690.0,0.2262901]
[1746764160154,1.07318772,102700.0,102690.0,0.2571901]
[1746764161960,1.06325302,102700.0,102690.0,0.2571901]
[1746764162157,0.7966499,102700.0,102690.0,0.32902212]
[1746764162463,0.7966499,102700.0,102690.0,0.36052212]
[1746764162664,0.7966499,102700.0,102690.0,0.4586901]
[1746764162865,0.7966499,102700.0,102690.0,0.4886901]
[1746764163166,0.73590546,102700.0,102690.0,0.2886901]
[1746764163663,0.73590546,102700.0,102690.0,0.4686901]
[1746764163852,0.73590546,102700.0,102690.0,0.4886901]
[1746764164051,0.73590546,102700.0,102690.0,0.4686901]
[1746764164258,0.73590546,102700.0,102690.0,0.4886901]
[1746764164560,0.47148556,102700.0,102690.0,0.56052212]
[1746764164954,0.11068556,102700.0,102690.0,0.56356736]
[1746764165159,0.11068556,102700.0,102690.0,1.06436736]
[1746764165361,0.11068556,102700.0,102690.0,1.23436736]
[1746764165560,0.10868556,102700.0,102690.0,1.23436736]
[1746764165757,0.10668556,102700.0,102690.0,1.23436736]
[1746764166258,0.10268556,102700.0,102690.0,1.23436736]
[1746764168261,0.07786122,102700.0,102690.0,1.23436692]
[1746764168467,0.07786122,102700.0,102690.0,1.51936692]
[1746764169167,0.07786122,102700.0,102690.0,1.59119894]
[1746764169368,0.07786122,102700.0,102690.0,1.51936692]
[1746764173063,0.09955556,102710.0,102700.0,0.1947711]
[1746764173263,0.09955556,102710.0,102700.0,1.46073994]
[1746764174169,0.09955556,102710.0,102700.0,1.62073994]
[1746764174464,0.09955556,102710.0,102700.0,1.71810794]
[1746764174866,0.10155556,102710.0,102700.0,1.71810794]
[1746764175067,0.10155556,102710.0,102700.0,3.21810794]
[1746764175659,0.10155556,102710.0,102700.0,3.21910794]
[1746764176063,0.09955556,102710.0,102700.0,3.22010794]
[1746764176768,0.0003,102710.0,102700.0,3.22010794]
[1746764176963,0.10171643,102730.0,102720.0,0.1947332]
[1746764177157,0.10025556,102730.0,102720.0,1.83288204]
[1746764177360,0.10025556,102730.0,102720.0,1.92538085]
[1746764177756,0.10025556,102730.0,102720.0,1.69683681]
[1746764178058,0.27107546,102730.0,102720.0,1.86791165]
[1746764178262,0.30577546,102730.0,102720.0,0.66447963]
[1746764178465,0.37327546,102730.0,102720.0,1.11527963]
[1746764178667,0.20245556,102730.0,102720.0,1.30039963]
[1746764178867,0.37327546,102730.0,102720.0,1.35497963]
[1746764179368,0.53327546,102730.0,102720.0,1.18513963]
[1746764179672,0.53327546,102730.0,102720.0,1.42677165]
[1746764180675,0.4340199,102730.0,102720.0,1.35493963]
[1746764180871,0.4340199,102730.0,102720.0,1.32393963]
[1746764181472,1.06136622,102730.0,102720.0,0.43333963]
[1746764181674,1.06136622,102730.0,102720.0,0.01740643]
[1746764181869,1.06136622,102730.0,102720.0,0.21213963]
[1746764182070,1.15871422,102730.0,102720.0,0.01740643]
[1746764182574,1.06136622,102730.0,102720.0,0.21213963]
[1746764184476,1.25796978,102730.0,102720.0,0.21213963]
[1746764186370,1.18613776,102730.0,102720.0,0.21213963]
[1746764186571,1.25796978,102730.0,102720.0,0.21213963]
[1746764187383,1.18613776,102730.0,102720.0,0.21213963]
[1746764187576,1.25796978,102730.0,102720.0,0.21213963]
[1746764189884,1.25796978,102730.0,102720.0,0.01740643]
[1746764190076,1.3298018,102730.0,102720.0,0.01740643]
[1746764190277,0.1947522,102710.0,102700.0,0.7323309]
[1746764190478,0.3655721,102710.0,102700.0,1.0023309]
[1746764190674,0.4579721,102710.0,102700.0,0.9049471]
[1746764190986,0.1947711,102700.0,102690.0,0.6529643]
[1746764191182,0.4164711,102700.0,102690.0,1.2436643]
[1746764191583,0.587291,102700.0,102690.0,1.2436643]
[1746764191783,0.587291,102700.0,102690.0,0.88817942]
[1746764192187,0.587291,102700.0,102690.0,0.75817942]
[1746764193274,0.587291,102700.0,102690.0,0.34868412]
[1746764193487,1.01992302,102700.0,102690.0,0.07451512]
[1746764193784,0.948091,102700.0,102690.0,0.26930522]
[1746764193983,0.587291,102700.0,102690.0,0.30070522]
[1746764194386,0.948091,102700.0,102690.0,0.30070522]
[1746764194988,0.948091,102700.0,102690.0,0.24070522]
[1746764195688,0.95798238,102700.0,102690.0,0.24070522]
[1746764197184,0.59718238,102700.0,102690.0,0.24070522]
[1746764197384,0.59718238,102700.0,102690.0,0.27110522]
[1746764201493,0.59718238,102700.0,102690.0,0.24070522]
[1746764202188,0.59718238,102700.0,102690.0,0.24375042]
[1746764202487,0.59718238,102700.0,102690.0,0.27415042]
[1746764207401,0.59718238,102700.0,102690.0,0.30485042]
[1746764207594,0.95798238,102700.0,102690.0,0.27415042]
[1746764207791,0.587291,102700.0,102690.0,0.27415042]
[1746764208191,0.59720967,102700.0,102690.0,0.27110522]
[1746764208392,0.587291,102700.0,102690.0,0.27110522]
[1746764208704,0.69662821,102700.0,102690.0,0.27110522]
[1746764208997,0.70062821,102700.0,102690.0,0.27110522]
[1746764209601,0.70462821,102700.0,102690.0,0.27110522]
[1746764210501,0.595291,102700.0,102690.0,0.27110522]
[1746764212702,0.69454656,102700.0,102690.0,0.27110522]
[1746764213000,1.17431904,102700.0,102690.0,0.04591512]
[1746764213189,1.20521904,102700.0,102690.0,0.04591512]
[1746764213390,0.1947901,102690.0,102680.0,0.00292156]
[1746764213689,0.53118727,102690.0,102680.0,0.23053066]
[1746764213992,0.89198727,102690.0,102680.0,0.03572156]
[1746764214190,1.07505754,102690.0,102660.0,0.47854088]
[1746764214402,0.83640447,102680.0,102670.0,0.227628]
[1746764214589,0.83640447,102680.0,102670.0,0.24257001]
[1746764214792,1.00722437,102680.0,102670.0,0.24257001]
[1746764215105,1.16722437,102680.0,102670.0,0.24257001]
[1746764215303,1.26462038,102680.0,102670.0,0.24257001]
[1746764215608,1.33639765,102680.0,102670.0,0.24257001]
[1746764215801,1.30224056,102680.0,102670.0,0.24257001]
[1746764217602,1.42791541,102680.0,102670.0,0.24257001]
[1746764220803,1.30410011,102680.0,102670.0,0.24257001]
[1746764221401,1.30410011,102680.0,102670.0,0.20977001]
[1746764221706,0.194828,102670.0,102660.0,0.40794068]
[1746764221898,0.92994535,102670.0,102660.0,0.40794068]
[1746764222099,0.56914535,102670.0,102660.0,0.40794068]
[1746764222295,0.92994535,102670.0,102660.0,0.40794068]
[1746764222498,0.8205479,102670.0,102660.0,0.40794068]
[1746764222908,0.8205479,102670.0,102660.0,0.40894068]
[1746764223114,0.8205479,102670.0,102660.0,0.40994068]
[1746764223300,0.4597479,102670.0,102660.0,0.40994068]
[1746764223700,0.55900346,102670.0,102660.0,0.40994068]
[1746764224308,0.55900346,102670.0,102660.0,0.7737868]
[1746764224501,0.55900346,102670.0,102660.0,0.78811037]
[1746764225800,0.52710346,102670.0,102660.0,0.78811037]
[1746764226209,0.68710346,102670.0,102660.0,0.78811037]
[1746764226402,0.68710346,102670.0,102660.0,0.73635275]
[1746764226599,0.71720346,102670.0,102660.0,0.68764195]
[1746764227206,0.55720346,102670.0,102660.0,0.68764195]
[1746764227811,0.27007546,102670.0,102660.0,0.7970394]
[1746764228006,0.84759196,102680.0,102670.0,0.194828]
[1746764228312,1.01841186,102680.0,102670.0,0.289828]
[1746764229303,0.84759196,102680.0,102670.0,0.289828]
[1746764229504,1.01841186,102680.0,102670.0,0.289828]
[1746764231211,0.9191563,102680.0,102670.0,0.289828]
[1746764231413,0.9191563,102680.0,102670.0,0.29287403]
[1746764232413,0.9191563,102680.0,102670.0,0.289828]
[1746764235106,0.5583563,102680.0,102670.0,0.289828]
[1746764235715,0.63013463,102680.0,102670.0,0.289828]
[1746764237010,0.2027199,102680.0,102670.0,0.36160633]
[1746764237210,0.48738886,102690.0,102680.0,0.1948091]
[1746764237412,0.24388556,102690.0,102680.0,0.69593315]
[1746764237615,0.31838566,102690.0,102680.0,0.69593315]
[1746764237815,0.31838566,102690.0,102680.0,0.62415446]
[1746764238305,0.56754389,102690.0,102680.0,0.62415446]
[1746764238511,0.57154389,102690.0,102680.0,0.62415446]
[1746764238722,0.58614389,102690.0,102680.0,0.62415446]
[1746764239620,0.61894389,102690.0,102680.0,0.62415446]
[1746764239918,0.54716556,102690.0,102680.0,0.62415446]
[1746764240309,0.54716556,102690.0,102680.0,0.6211091]
[1746764241419,0.54959556,102690.0,102680.0,0.6211091]
[1746764243119,0.45034,102690.0,102680.0,0.6211091]
[1746764243318,0.48224,102690.0,102680.0,0.6536091]
[1746764246021,0.84304,102690.0,102680.0,0.2928091]
[1746764246822,0.94229556,102690.0,102680.0,0.2928091]
[1746764249318,0.77147566,102690.0,102680.0,0.2928091]
[1746764249525,0.94229556,102690.0,102680.0,0.2928091]
[1746764250719,1.1610066,102690.0,102680.0,0.0332]
[1746764251023,0.1948091,102680.0,102670.0,0.1948178]
[1746764251220,0.57358452,102680.0,102670.0,0.2255178]
[1746764251616,0.93438452,102680.0,102670.0,0.2255178]
[1746764252124,1.09438452,102680.0,102670.0,0.2255178]
[1746764252820,0.194828,102670.0,102660.0,0.40779765]
[1746764253013,0.53740342,102670.0,102660.0,0.66434465]
[1746764253221,0.69740342,102670.0,102660.0,0.66434465]
[1746764254226,0.53740342,102670.0,102660.0,0.66534465]
[1746764254526,0.53740342,102670.0,102660.0,0.66634465]
[1746764254932,0.53740342,102670.0,102660.0,0.63634465]
[1746764255425,0.53740342,102670.0,102660.0,0.63939069]
[1746764258318,0.56850342,102670.0,102660.0,0.67229069]
[1746764260433,0.56850342,102670.0,102660.0,0.66924465]
[1746764260930,0.56850342,102670.0,102660.0,0.63634465]
[1746764261133,0.56850342,102670.0,102660.0,0.08069765]
[1746764261323,0.57093342,102670.0,102660.0,0.08069765]
[1746764261521,0.57093342,102670.0,102660.0,0.27554465]
[1746764261716,0.53338403,102670.0,102660.0,0.27554465]
[1746764261921,0.53338403,102670.0,102660.0,0.08069765]
[1746764262230,0.69738403,102670.0,102660.0,0.27454465]
[1746764262826,0.69738403,102670.0,102660.0,0.27354465]
[1746764263029,0.70138403,102670.0,102660.0,0.27354465]
[1746764263330,0.80063959,102670.0,102660.0,0.27354465]
[1746764263732,0.83824397,102670.0,102660.0,0.27354465]
[1746764264332,0.83824397,102670.0,102660.0,0.63434465]
[1746764264524,0.83824397,102670.0,102660.0,0.27354465]
[1746764266336,0.67824397,102670.0,102660.0,0.27354465]
[1746764267136,0.83824397,102670.0,102660.0,0.27354465]
[1746764267735,1.22338397,102670.0,102660.0,0.27354465]
[1746764268237,1.22338397,102670.0,102660.0,0.04699765]
[1746764268440,1.22338397,102670.0,102660.0,0.24184465]
[1746764269134,0.75317346,102670.0,102660.0,0.60264465]
[1746764269334,0.75317346,102670.0,102660.0,0.66454465]
[1746764269536,0.76777346,102670.0,102660.0,0.66759067]
[1746764269836,0.79813346,102670.0,102660.0,0.66759067]
[1746764270134,0.63813346,102670.0,102660.0,0.66759067]
[1746764271032,0.5388779,102670.0,102660.0,0.66759067]
[1746764274427,0.64828841,102670.0,102660.0,0.66759067]
[1746764276337,0.55478841,102670.0,102660.0,0.66759067]